bitfinex/quotes_SOLUSD_20260217
["timestamp","ask_amount","ask_price","bid_price","bid_amount"]
[1771297666273,4.5771676,87.26,87.186,5.36086188]
[1771297666274,1.36428044,87.259,87.228,11.46411832]
[1771297666654,1.36428044,87.268,87.231,1.37050878]
[1771297667357,1.36428044,87.279,87.241,1.37050878]
[1771297668477,1.36428044,87.279,87.242,11.46236904]
[1771297668681,1.36428044,87.277,87.243,1.37050878]
[1771297669264,1.36428044,87.269,87.243,1.37050878]
[1771297669576,1.36428044,87.269,87.242,11.46236904]
[1771297669872,1.36428044,87.269,87.236,11.46315741]
[1771297670078,1.45124039,87.259,87.227,1.4377097]
[1771297670661,1.45124039,87.259,87.229,1.4377097]
[1771297670860,1.45124039,87.257,87.229,1.4377097]
[1771297671779,28.64377456,87.279,87.229,1.4377097]
[1771297671780,1.45124039,87.264,87.229,1.4377097]
[1771297672083,1.45124039,87.262,87.229,1.4377097]
[1771297672977,1.45124039,87.275,87.231,1.4377097]
[1771297673180,0.14216157,87.274,87.231,1.4377097]
[1771297673380,1.45124039,87.273,87.231,1.4377097]
[1771297673963,1.45124039,87.273,87.242,11.46236904]
[1771297674284,1.45124039,87.273,87.243,1.4377097]
[1771297674482,3.21288716,87.28,87.243,1.4377097]
[1771297674682,1.45124039,87.28,87.243,1.4377097]
[1771297675662,1.45124039,87.279,87.243,1.4377097]
[1771297676273,1.45124039,87.279,87.245,1.4377097]
[1771297677190,1.45124039,87.288,87.251,1.4377097]
[1771297677562,1.45124039,87.288,87.261,1.4377097]
[1771297678072,11.45554669,87.294,87.261,1.4377097]
[1771297678277,1.45124039,87.295,87.263,1.4377097]
[1771297679067,3.21288716,87.3,87.262,11.45974192]
[1771297679068,1.45124039,87.289,87.262,12.89745162]
[1771297679274,1.45124039,87.289,87.263,1.4377097]
[1771297680371,1.45124039,87.306,87.271,1.4377097]
[1771297680792,1.45124039,87.315,87.281,1.4377097]
[1771297681291,1.45124039,87.314,87.281,1.4377097]
[1771297682791,1.45124039,87.314,87.282,12.89482571]
[1771297683089,1.45124039,87.314,87.283,1.4377097]
[1771297685689,1.45124039,87.314,87.285,1.4377097]
[1771297688491,1.45124039,87.314,87.286,11.45659097]
[1771297688694,1.45124039,87.314,87.286,12.89430067]
[1771297689195,3.21288716,87.32,87.287,1.4377097]
[1771297689196,1.45124039,87.312,87.287,1.4377097]
[1771297691291,12.90455096,87.311,87.287,1.4377097]
[1771297692209,1.45124039,87.31,87.287,1.4377097]
[1771297692701,1.45124039,87.31,87.281,1.4377097]
[1771297694287,1.45124039,87.31,87.283,1.39925797]
[1771297694690,1.44522269,87.318,87.283,1.39925797]
[1771297696208,1.44522269,87.325,87.291,1.39925797]
[1771297696391,1.44522269,87.33,87.293,1.39925797]
[1771297696592,1.44522269,87.329,87.293,1.39925797]
[1771297697804,1.44522269,87.327,87.295,1.39925797]
[1771297699111,1.44522269,87.327,87.29,3.21288716]
[1771297699310,1.44522269,87.319,87.285,11.45659234]
[1771297699827,1.44522269,87.318,87.285,1.39925797]
[1771297700003,1.44522269,87.312,87.281,11.45724728]
[1771297701787,1.44522269,87.311,87.281,1.39925797]
[1771297702602,12.89853326,87.311,87.281,1.39925797]
[1771297702906,1.44522269,87.309,87.281,1.39925797]
[1771297703684,1.44522269,87.309,87.272,1.39925797]
[1771297704908,1.44522269,87.299,87.267,1.39925797]
[1771297705110,1.44522269,87.299,87.269,1.39925797]
[1771297705999,1.44522269,87.299,87.271,1.39925797]
[1771297706907,16.14,87.304,87.28,3.21288716]
[1771297707107,16.14,87.304,87.281,1.39925797]
[1771297707991,1.44522269,87.32,87.291,1.39925797]
[1771297709209,1.44522269,87.32,87.292,12.85506148]
[1771297709415,1.44522269,87.32,87.293,1.39925797]
[1771297709611,1.44522269,87.318,87.293,1.39925797]
[1771297709832,1.44522269,87.318,87.287,11.45633155]
[1771297710709,1.44522269,87.318,87.287,12.85558952]
[1771297710916,1.44522269,87.318,87.288,1.39925797]
[1771297711224,1.44522269,87.318,87.25,4.61729252]
[1771297711400,1.44522269,87.287,87.241,1.39925797]
[1771297711717,1.44522269,87.283,87.241,1.39925797]
[1771297713318,11.45711601,87.282,87.242,11.46236904]
[1771297713608,11.45711601,87.282,87.243,1.39925797]
[1771297714602,27.57619722,87.289,87.251,1.39925797]
[1771297715211,1.44522269,87.288,87.251,1.39925797]
[1771297715916,1.44522269,87.279,87.253,1.39925797]
[1771297718439,1.44522269,87.277,87.253,1.39925797]
[1771297718806,1.44522269,87.277,87.229,18.6]
[1771297718807,3.21288716,87.26,87.231,1.39925797]
[1771297719004,1.44522269,87.261,87.231,1.39925797]
[1771297719836,11.45622339,87.289,87.251,1.39925797]
[1771297720005,1.44522269,87.296,87.261,1.39925797]
[1771297720201,1.44522269,87.296,87.263,1.39925797]
[1771297720924,1.44522269,87.289,87.258,11.46024698]
[1771297722218,1.44522269,87.288,87.258,1.39925797]
[1771297723306,1.44522269,87.286,87.259,11.46013591]
[1771297724118,1.44522269,87.286,87.26,1.39925797]
[1771297725222,1.48414624,87.279,87.202,45.87036142]
[1771297725424,1.48414624,87.269,87.22,3.21406656]
[1771297726524,1.48414624,87.267,87.216,40.13025132]
[1771297726727,11.45895402,87.268,87.216,40.13025132]
[1771297726728,1.48414624,87.259,87.216,40.13025132]
[1771297727032,3.21406656,87.25,87.216,40.13025132]
[1771297727333,1.48414624,87.249,87.217,1.47867747]
[1771297728219,1.48414624,87.267,87.231,1.47867747]
[1771297729132,1.48414624,87.267,87.233,1.47867747]
[1771297730713,1.48414624,87.267,87.234,11.46342022]
[1771297730914,1.48414624,87.267,87.235,1.41818418]
[1771297731228,1.51425253,87.265,87.235,1.41818418]
[1771297733332,1.51425253,87.265,87.236,11.46315741]
[1771297733635,1.51425253,87.265,87.237,1.41818418]
[1771297735724,1.51425253,87.265,87.239,1.41818418]
[1771297737530,1.51425253,87.265,87.241,1.41818418]
[1771297738434,107.657839,108.0,87.219,1.41818418]
[1771297738435,1.51425253,87.249,87.219,1.41818418]
[1771297739624,1.51425253,87.248,87.221,1.41818418]
[1771297740825,1.51425253,87.239,87.221,1.41818418]
[1771297742143,1.51425253,87.253,87.223,1.41818418]
[1771297743051,1.51425253,87.249,87.223,1.41818418]
[1771297744226,1.51425253,87.249,87.224,11.46473447]
[1771297744437,1.51425253,87.249,87.225,1.41818418]
[1771297744825,1.51425253,87.249,87.221,1.41818418]
[1771297747042,11.46158078,87.248,87.221,1.41818418]
[1771297747247,1.51425253,87.239,87.212,1.41818418]
[1771297748049,1.51425253,87.247,87.212,1.41818418]
[1771297750151,1.51425253,87.245,87.214,1.41818418]
[1771297750348,1.51425253,87.229,87.21,0.1]
[1771297750533,1.51425253,87.229,87.196,11.46831156]
[1771297750741,1.51425253,87.219,87.19,1.51818418]
[1771297752352,1.51425253,87.209,87.19,1.51818418]
[1771297752857,1.51425253,87.209,87.19,0.1]
[1771297755444,1.44366849,87.207,87.19,0.1]
[1771297755640,1.44366849,87.215,87.191,1.43041776]
[1771297755862,1.44366849,87.219,87.191,1.43041776]
[1771297757256,1.44366849,87.231,87.192,1.43041776]
[1771297757555,11.46171215,87.247,87.201,1.43041776]
[1771297757556,1.44366849,87.239,87.201,1.43041776]
[1771297758145,1.44366849,87.229,87.195,1.43041776]
[1771297758363,3.21406656,87.23,87.19,3.31406656]
[1771297758364,1.44366849,87.219,87.19,0.1]
[1771297758566,1.44366849,87.209,87.19,0.1]
[1771297759241,1.44366849,87.209,87.19,1.53041776]
[1771297759454,1.44366849,87.219,87.19,1.53041776]
[1771297759654,1.44366849,87.219,87.192,1.43041776]
[1771297761561,1.44366849,87.219,87.194,1.43041776]
[1771297762443,1.44366849,87.217,87.194,1.43041776]
[1771297763050,1.44366849,87.217,87.19,0.1]
[1771297763547,1.44366849,87.215,87.19,1.53041776]
[1771297764665,1.44366849,87.234,87.201,1.43041776]
[1771297764861,1.44366849,87.24,87.211,1.43041776]
[1771297765257,1.44366849,87.238,87.211,1.43041776]
[1771297765755,11.463026,87.237,87.211,1.43041776]
[1771297765961,1.44366849,87.229,87.201,1.43041776]
[1771297766341,1.44366849,87.219,87.195,11.46845681]
[1771297766765,1.44366849,87.219,87.196,1.43041776]
[1771297767962,1.44366849,87.219,87.198,1.43041776]
[1771297769349,1.44366849,87.219,87.2,1.43041776]
[1771297769555,1.44366849,87.229,87.2,1.43041776]
[1771297769761,28.65756502,87.237,87.211,1.43041776]
[1771297769762,1.44366849,87.237,87.211,1.43041776]
[1771297770172,0.14216157,87.243,87.211,1.43041776]
[1771297770476,1.58583006,87.243,87.211,1.43041776]
[1771297771366,1.44366849,87.25,87.221,1.43041776]
[1771297771567,1.44366849,87.239,87.208,11.46680776]
[1771297772672,1.44366849,87.239,87.209,1.43041776]
[1771297773271,1.44366849,87.239,87.203,1.43041776]
[1771297773472,1.44366849,87.237,87.203,1.43041776]
[1771297774458,1.44366849,87.235,87.203,1.43041776]
[1771297774658,1.44366849,87.229,87.196,11.46828881]
[1771297774959,1.44366849,87.229,87.197,1.43041776]
[1771297776154,0.14216157,87.228,87.192,11.46891521]
[1771297776359,0.14216157,87.228,87.19,0.1]
[1771297776360,1.44366849,87.219,87.19,0.1]
[1771297776568,1.44366849,87.217,87.19,0.1]
[1771297779067,11.46578609,87.216,87.19,0.1]
[1771297779367,1.44366849,87.215,87.19,0.1]
[1771297779679,1.44366849,87.215,87.19,1.53041776]
[1771297780173,28.6483699,87.265,87.201,1.43041776]
[1771297780478,3.21406656,87.24,87.201,1.43041776]
[1771297781261,16.18,87.242,87.191,1.43041776]
[1771297781262,3.21406656,87.22,87.191,1.43041776]
[1771297781480,3.21406656,87.22,87.192,1.43041776]
[1771297781663,3.21406656,87.23,87.192,1.43041776]
[1771297782063,1.44366849,87.229,87.192,1.43041776]
[1771297783566,1.44366849,87.229,87.194,1.43041776]
[1771297784664,1.52730394,87.227,87.194,1.43041776]
[1771297786171,1.52730394,87.225,87.196,1.44772474]
[1771297786367,11.4644716,87.226,87.19,3.3181276]
[1771297786368,1.52730394,87.219,87.192,11.46892126]
[1771297786573,0.14216157,87.224,87.19,0.1]
[1771297786574,1.52730394,87.209,87.19,0.1]
[1771297786978,1.52730394,87.209,87.17,3.3181276]
[1771297786979,1.52730394,87.199,87.171,11.47170503]
[1771297788280,1.52730394,87.198,87.17,1.54772474]
[1771297789367,1.52730394,87.198,87.172,1.53090379]
[1771297789771,1.39810424,87.196,87.172,1.53090379]
[1771297791677,1.39810424,87.194,87.172,1.53090379]
[1771297791879,1.39810424,87.194,87.17,0.1]
[1771297792585,1.39810424,87.194,87.17,11.57181112]
[1771297793181,1.39810424,87.194,87.17,13.10271491]
[1771297793380,1.39810424,87.194,87.171,1.53090379]
[1771297794682,1.39810424,87.189,87.17,0.1]
[1771297797281,3.2181276,87.19,87.17,0.1]
[1771297797282,1.39810424,87.187,87.17,0.1]
[1771297798469,11.46946827,87.188,87.16,0.1]
[1771297798470,1.39810424,87.183,87.16,0.1]
[1771297798664,1.39810424,87.169,87.143,1.53090379]
[1771297799381,1.39810424,87.167,87.143,1.53090379]
[1771297799788,3.2181276,87.16,87.143,1.53090379]
[1771297800164,1.39810424,87.163,87.143,1.53090379]
[1771297800370,11.47209985,87.168,87.143,1.53090379]
[1771297801272,45.85223821,87.237,87.151,1.53090379]
[1771297801273,3.2181276,87.19,87.151,1.53090379]
[1771297801486,30.86741646,87.19,87.152,1.53090379]
[1771297801987,32.2655207,87.19,87.152,1.53090379]
[1771297802774,20.79623184,87.19,87.152,1.53090379]
[1771297803186,14.68612595,87.2,87.161,1.53090379]
[1771297803973,14.68612595,87.2,87.16,3.2181276]
[1771297803974,1.39810424,87.199,87.163,1.53090379]
[1771297804275,14.68612595,87.2,87.157,1.53090379]
[1771297804276,1.39810424,87.189,87.157,1.53090379]
[1771297804607,16.18,87.188,87.157,1.53090379]
[1771297804809,1.39810424,87.179,87.157,1.53090379]
[1771297805568,1.39810424,87.177,87.14,0.1]
[1771297805773,1.39810424,87.169,87.142,1.53090379]
[1771297806782,12.87018449,87.169,87.142,1.53090379]
[1771297807380,1.39810424,87.168,87.142,1.53090379]
[1771297807782,1.39810424,87.166,87.14,0.1]
[1771297807980,0.14216157,87.167,87.14,0.1]
[1771297807981,3.2181276,87.15,87.14,0.1]
[1771297808296,3.2181276,87.15,87.13,0.1]
[1771297808297,1.39810424,87.149,87.13,0.1]
[1771297809103,11.47473263,87.148,87.13,0.1]
[1771297809297,12.87283687,87.148,87.13,0.1]
[1771297810291,1.39810424,87.147,87.13,0.1]
[1771297811378,11.47499598,87.146,87.13,0.1]
[1771297811580,1.39810424,87.145,87.13,0.1]
[1771297811780,3.2181276,87.14,87.13,0.1]
[1771297811981,1.39810424,87.145,87.13,0.1]
[1771297814397,1.39810424,87.145,87.12,0.1]
[1771297817499,1.52454026,87.143,87.12,0.1]
[1771297817711,1.52454026,87.129,87.11,0.1]
[1771297818998,1.52454026,87.129,87.1,0.1]
[1771297819183,1.45361052,87.127,87.102,1.41975522]
[1771297820397,1.45361052,87.127,87.103,11.48066082]
[1771297820605,1.45361052,87.127,87.103,12.90041604]
[1771297821302,1.45361052,87.127,87.104,1.41975522]
[1771297822606,12.93303751,87.126,87.104,1.41975522]
[1771297823103,1.45540742,87.125,87.1,0.1]
[1771297826112,1.45669284,87.123,87.1,0.1]
[1771297826306,1.45669284,87.119,87.1,0.1]
[1771297826710,1.45710747,87.128,87.1,1.51975522]
[1771297827421,11.47731111,87.129,87.074,1.41975522]
[1771297827422,1.35751893,87.109,87.074,1.41975522]
[1771297827594,1.08888473,87.099,87.076,11.48422068]
[1771297827913,1.08888473,87.099,87.077,1.41975522]
[1771297828113,1.08888473,87.099,87.073,28.71137367]
[1771297828114,1.08888473,87.099,87.078,12.90371213]
[1771297828492,1.08888473,87.099,87.079,1.41975522]
[1771297829300,3.2181276,87.14,87.091,1.41975522]
[1771297829496,3.2181276,87.15,87.121,1.41975522]
[1771297830203,11.47460097,87.149,87.121,1.41975522]
[1771297831207,3.2181276,87.15,87.122,11.47815706]
[1771297831408,3.2181276,87.15,87.123,1.41975522]
[1771297831916,1.09154302,87.169,87.131,1.41975522]
[1771297832322,1.09154302,87.169,87.132,11.47683973]
[1771297832502,1.09154302,87.169,87.133,1.41975522]
[1771297832823,1.09219081,87.159,87.133,1.41975522]
[1771297834806,1.09219081,87.159,87.134,11.4765763]
[1771297835010,1.09219081,87.159,87.134,12.89633152]
[1771297835325,1.09219081,87.159,87.135,1.41975522]
[1771297836426,1.09219081,87.159,87.136,11.47631289]
[1771297838626,1.09219081,87.159,87.136,1.41975522]
[1771297841315,1.09219081,87.159,87.137,11.47618118]
[1771297841512,1.09219081,87.159,87.137,12.8959364]
[1771297841711,1.09219081,87.159,87.128,1.41975522]
[1771297842222,1.09767998,87.157,87.128,11.47728217]
[1771297842432,1.09767998,87.157,87.129,1.41975522]
[1771297844014,1.09883041,87.155,87.129,1.41975522]
[1771297844828,1.09883041,87.155,87.103,1.45796363]
[1771297845131,3.2181276,87.12,87.081,1.45796363]
[1771297845326,3.2181276,87.14,87.101,1.45796363]
[1771297845915,3.22466861,87.14,87.101,1.45796363]
[1771297846120,12.57642306,87.139,87.103,1.45796363]
[1771297846728,1.10104638,87.138,87.103,1.45796363]
[1771297848332,11.47618118,87.137,87.104,11.48052902]
[1771297848617,1.10158038,87.136,87.105,1.45796363]
[1771297850507,1.10368639,87.134,87.105,1.45796363]
[1771297853634,3.22466861,87.14,87.105,1.45796363]
[1771297854337,1.10518009,87.139,87.105,1.45796363]
[1771297854542,1.10566627,87.137,87.106,1.49362421]
[1771297855636,1.10566627,87.137,87.107,11.48013362]
[1771297855821,11.47631289,87.136,87.108,1.49362421]
[1771297856648,1.10662811,87.144,87.11,3.22466861]
[1771297856820,1.10662811,87.144,87.111,1.49362421]
[1771297857142,28.68435191,87.156,87.107,11.48013362]
[1771297857143,11.47365614,87.157,87.131,1.49362421]
[1771297857524,12.5807473,87.157,87.131,1.49362421]
[1771297857822,1.10709116,87.154,87.131,1.49362421]
[1771297858022,1.10709116,87.154,87.124,12.97151773]
[1771297858231,1.10709116,87.154,87.125,1.49362421]
[1771297858940,11.47381102,87.155,87.114,1.49362421]
[1771297858941,1.10755542,87.149,87.114,1.49362421]
[1771297859120,1.10755542,87.149,87.113,11.47930247]
[1771297859318,1.10755542,87.139,87.113,11.47930247]
[1771297859921,1.10755542,87.139,87.112,1.49362421]
[1771297862146,1.10755542,87.139,87.114,1.49362421]
[1771297862350,1.10894201,87.145,87.114,1.49362421]
[1771297863630,1.10894201,87.145,87.116,1.49362421]
[1771297864052,1.10981657,87.143,87.116,1.49362421]
[1771297864223,1.10981657,87.139,87.109,1.49362421]
[1771297864430,1.10981657,87.146,87.111,1.49362421]
[1771297866434,28.68461598,87.155,87.113,1.49362421]
[1771297866435,1.11068121,87.139,87.113,1.49362421]
[1771297868847,11.47604948,87.138,87.113,1.49362421]
[1771297869048,1.11192149,87.137,87.113,1.49362421]
[1771297869245,1.11192149,87.137,87.099,18.28]
[1771297869246,1.11192149,87.129,87.099,1.49362421]
[1771297869744,1.11235449,87.119,87.093,11.48193273]
[1771297869942,1.11235449,87.119,87.094,1.49362421]
[1771297871546,3.22466861,87.11,87.088,1.49362421]
[1771297871751,1.11317196,87.109,87.088,1.49362421]
[1771297872132,1.11317196,87.109,87.071,1.49362421]
[1771297872938,3.22466861,87.11,87.072,1.49362421]
[1771297873152,0.14216157,87.116,87.072,1.49362421]
[1771297873346,0.14216157,87.114,87.072,1.49362421]
[1771297873551,1.11388262,87.109,87.081,1.49362421]
[1771297873751,1.11388262,87.089,87.058,1.49362421]
[1771297874052,1.11388262,87.089,87.038,5.98955182]
[1771297874053,4.33888745,87.09,87.054,1.49362421]
[1771297874247,1.11421884,87.089,87.054,1.49362421]
[1771297875249,3.22466861,87.09,87.054,1.49362421]
[1771297875557,15.8219898,87.09,87.056,1.46969966]
[1771297875734,1.11483837,87.089,87.056,1.46969966]
[1771297875930,1.11483837,87.089,87.038,18.28]
[1771297875931,1.11483837,87.069,87.038,1.46969966]
[1771297876126,1.11483837,87.077,87.041,1.46969966]
[1771297877539,12.59899814,87.077,87.042,11.4887066]
[1771297877746,1.11543787,87.076,87.043,1.46969966]
[1771297878457,3.22466861,87.07,87.043,1.46969966]
[1771297878756,11.48415977,87.077,87.043,1.46969966]
[1771297879861,1.11602407,87.076,87.045,1.46969966]
[1771297880060,11.48415977,87.077,87.045,1.46969966]
[1771297881664,1.11662308,87.076,87.045,1.46969966]
[1771297881962,11.4825064,87.089,87.051,1.46969966]
[1771297882351,1.11662308,87.088,87.051,1.46969966]
[1771297882868,11.47987004,87.109,87.071,1.46969966]
[1771297883072,3.22466861,87.11,87.081,1.46969966]
[1771297883365,4.341562,87.11,87.081,1.46969966]
[1771297883562,3.22466861,87.1,87.081,1.46969966]
[1771297884646,3.22466861,87.11,87.081,1.46969966]
[1771297885060,16.22,87.13,87.082,1.46969966]
[1771297885264,11.4772349,87.129,87.091,1.46969966]
[1771297886066,11.4772349,87.129,87.101,1.46969966]
[1771297886449,11.47653792,87.135,87.111,1.46969966]
[1771297886655,1.11797304,87.139,87.111,1.46969966]
[1771297886851,3.22466861,87.12,87.096,1.46969966]
[1771297887146,1.11797304,87.127,87.096,1.46969966]
[1771297888167,1.11797304,87.127,87.098,1.46969966]
[1771297888360,1.1182352,87.125,87.098,1.46969966]
[1771297890663,11.47789357,87.124,87.098,1.46969966]
[1771297890857,11.4772349,87.129,87.098,1.46969966]
[1771297891057,12.59648473,87.129,87.098,1.46969966]
[1771297891259,1.11924983,87.128,87.098,1.46969966]
[1771297891642,3.22466861,87.13,87.1,1.4796044]
[1771297891854,1.11950082,87.128,87.1,1.4796044]
[1771297892461,4.34442259,87.12,87.091,1.4796044]
[1771297892764,11.47868408,87.118,87.091,1.4796044]
[1771297893959,1.11999979,87.117,87.091,1.4796044]
[1771297896267,11.47894761,87.116,87.091,1.4796044]
[1771297896671,3.22466861,87.1,87.071,1.4796044]
[1771297896850,3.22466861,87.11,87.072,1.4796044]
[1771297898654,11.47987004,87.109,87.074,1.4796044]
[1771297899160,0.14216157,87.108,87.074,1.4796044]
[1771297899587,1.26354704,87.108,87.074,1.4796044]
[1771297900247,1.12138547,87.108,87.074,1.4796044]
[1771297900446,11.47987004,87.109,87.074,1.4796044]
[1771297900649,11.47987004,87.109,87.076,1.4796044]
[1771297903368,11.47987004,87.109,87.078,1.4796044]
[1771297906177,11.47987004,87.109,87.07,3.22733113]
[1771297906178,3.22733113,87.11,87.08,1.52046685]
[1771297906566,1.12317779,87.109,87.08,1.52046685]
[1771297906772,3.22733113,87.1,87.08,1.52046685]
[1771297908464,4.35094521,87.1,87.08,1.52046685]
[1771297909474,3.22733113,87.1,87.08,1.52046685]
[1771297909684,11.48118807,87.099,87.08,1.52046685]
[1771297909865,1.12406803,87.098,87.069,1.50720398]
[1771297910683,1.12406803,87.098,87.07,11.48501205]
[1771297910879,1.12406803,87.098,87.071,1.50720398]
[1771297912281,3.22733113,87.09,87.071,1.50720398]
[1771297912580,12.60595855,87.097,87.071,1.50720398]
[1771297913967,12.60660555,87.095,87.071,1.50720398]
[1771297914676,1.12507878,87.089,87.069,1.50720398]
[1771297915093,3.22733113,87.09,87.069,1.50720398]
[1771297915265,11.48118807,87.099,87.069,1.50720398]
[1771297916579,1.12547232,87.098,87.069,1.50720398]
[1771297916779,1.12547232,87.089,87.043,28.7211686]
[1771297916982,1.12547232,87.079,87.045,1.50720398]
[1771297917370,12.60942923,87.078,87.047,1.50720398]
[1771297917573,3.22733113,87.07,87.047,1.50720398]
[1771297919371,1.12567896,87.077,87.049,1.50720398]
[1771297919572,11.48395691,87.078,87.049,1.50720398]
[1771297920586,11.48395691,87.078,87.05,11.48765077]
[1771297920890,4.3535792,87.08,87.051,1.50720398]
[1771297921077,1.12624807,87.069,87.045,1.50720398]
[1771297921273,3.22733113,87.07,87.045,1.50720398]
[1771297921472,1.12624807,87.075,87.045,1.50720398]
[1771297922194,1.12624807,87.075,87.047,1.50720398]
[1771297922390,11.48448446,87.074,87.047,1.50720398]
[1771297922595,1.12661652,87.069,87.047,1.50720398]
[1771297924396,11.48527587,87.068,87.047,1.50720398]
[1771297926798,1.12730012,87.065,87.04,11.48894557]
[1771297926983,4.35463125,87.06,87.039,1.50720398]
[1771297927383,3.22733113,87.06,87.039,1.50720398]
[1771297927588,1.12746938,87.065,87.039,1.50720398]
[1771297928999,11.48580354,87.064,87.039,1.50720398]
[1771297929596,12.61362951,87.064,87.039,1.50720398]
[1771297929980,1.12782597,87.063,87.039,1.50720398]
[1771297931896,45.01058213,87.076,87.01,0.1]
[1771297931897,11.48778274,87.049,87.023,1.58052226]
[1771297932193,11.48778274,87.049,87.019,11.49163724]
[1771297932379,3.22733113,87.04,87.02,1.58052226]
[1771297939995,3.22733113,87.04,87.02,13.07203587]
[1771297940200,3.22733113,87.04,87.021,1.58052226]
[1771297942211,11.48910258,87.039,87.021,1.58052226]
[1771297942802,3.22733113,87.04,87.021,1.58052226]
[1771297943200,45.1799689,87.054,87.015,18.4108099]
[1771297943201,3.22733113,87.03,87.015,18.4108099]
[1771297944402,11.49042273,87.029,87.015,18.4108099]
[1771297945194,3.22733113,87.03,87.016,1.58052226]
[1771297946509,3.22733113,87.04,87.018,1.58052226]
[1771297948522,3.22733113,87.03,87.015,29.90298657]
[1771297948821,3.22733113,87.03,87.015,31.48350883]
[1771297949415,3.22733113,87.03,87.016,1.58052226]
[1771297949816,3.22733113,87.04,87.018,1.58052226]
[1771297950023,3.22733113,87.05,87.018,1.58052226]
[1771297950713,19.56733113,87.06,87.021,1.58052226]
[1771297950914,28.70978511,87.079,87.031,1.58052226]
[1771297950915,14.71235793,87.07,87.031,1.58052226]
[1771297952511,14.71235793,87.07,87.033,1.58052226]
[1771297952808,3.22733113,87.06,87.033,1.58052226]
[1771297953707,3.22733113,87.06,86.997,18.38]
[1771297953708,3.22733113,87.04,87.016,1.58052226]
[1771297954234,3.22733113,87.04,87.018,1.58052226]
[1771297955812,16.34,87.052,87.001,18.38]
[1771297955813,3.22733113,87.03,87.012,13.07317892]
[1771297956222,3.22733113,87.04,87.016,1.58052226]
[1771297958707,11.48910258,87.039,87.016,1.58052226]
[1771297959425,3.22733113,87.03,87.015,18.4108099]
[1771297960124,3.22733113,87.03,87.015,19.99133216]
[1771297960528,3.22733113,87.04,87.016,1.58052226]
[1771297960729,11.48804668,87.047,87.018,1.58052226]
[1771297961335,16.34,87.049,87.018,1.58052226]
[1771297961926,3.22733113,87.06,87.021,1.58052226]
[1771297962128,14.71246723,87.07,87.031,1.58052226]
[1771297962509,14.71246723,87.07,87.033,1.58052226]
[1771297963124,11.48382503,87.079,87.041,1.58052226]
[1771297963325,11.48305659,87.085,87.041,1.58052226]
[1771297963630,3.22733113,87.08,87.051,1.58052226]
[1771297963835,3.22733113,87.07,87.051,1.58052226]
[1771297968017,3.23040335,87.07,87.051,1.58052226]
[1771297972325,14.71541617,87.07,87.045,1.58052226]
[1771297973036,3.23040335,87.07,87.045,1.58052226]
[1771297974035,11.48514396,87.069,87.045,1.58052226]
[1771297974241,3.23040335,87.07,87.046,1.58052226]
[1771297976847,14.71544857,87.07,87.046,1.58052226]
[1771297977423,14.71544857,87.07,87.047,1.58052226]
[1771297978647,3.23040335,87.07,87.047,1.58052226]
[1771297980636,14.71286118,87.09,87.051,1.58052226]
[1771297982748,14.71286118,87.09,87.052,11.48738684]
[1771297982959,14.71286118,87.09,87.053,1.58052226]
[1771297984253,14.71286118,87.09,87.054,11.48712293]
[1771297984456,11.48131989,87.098,87.061,1.58052226]
[1771297986258,11.48131989,87.098,87.063,1.58052226]
[1771297988140,14.71027319,87.11,87.071,1.58052226]
[1771297988449,14.71027319,87.11,87.038,45.9568567]
[1771297988450,3.23040335,87.1,87.073,1.58052226]
[1771297988858,3.23040335,87.1,87.061,11.48611526]
[1771297989051,3.23040335,87.09,87.062,1.58052226]
[1771297989455,40.17921549,87.11,87.062,1.58052226]
[1771297989456,3.23040335,87.08,87.062,1.58052226]
[1771297990165,3.23040335,87.09,87.062,1.58052226]
[1771297991065,11.4825064,87.089,87.062,1.58052226]
[1771297991248,3.23040335,87.09,87.062,1.58052226]
[1771297992066,16.4,87.091,87.062,1.58052226]
[1771297992573,3.23040335,87.09,87.062,13.06647176]
[1771297992758,3.23040335,87.09,87.063,1.58052226]
[1771297995570,16.4,87.091,87.065,1.58052226]
[1771297997069,3.23040335,87.09,87.065,1.58052226]
[1771297998155,3.23040335,87.1,87.067,1.58052226]
[1771297999772,16.4,87.122,87.067,1.58052226]
[1771297999773,3.23040335,87.09,87.067,1.58052226]
[1771298001372,3.23040335,87.1,87.069,1.58052226]
[1771298002069,11.48118807,87.099,87.069,1.58052226]
[1771298002773,11.48118807,87.099,87.07,1.58052226]
[1771298004672,11.48118807,87.099,87.072,1.58052226]
[1771298008072,11.48052358,87.105,87.074,1.58052226]
[1771298008877,3.23040335,87.1,87.074,1.58052226]
[1771298012072,3.23040335,87.1,87.076,1.58052226]
[1771298012984,14.71149149,87.1,87.076,1.58052226]
[1771298015488,3.23040335,87.1,87.065,1.58052226]
[1771298016775,3.23040335,87.11,87.065,1.58052226]
[1771298017597,11.47987004,87.109,87.067,1.58052226]
[1771298018084,3.23040335,87.1,87.067,1.58052226]
[1771298020276,11.47987004,87.109,87.069,1.58052226]
[1771298025182,11.48118807,87.099,87.071,1.58052226]
[1771298029196,3.23040335,87.09,87.052,1.58052226]
[1771298029694,16.5,87.097,87.054,1.58052226]